fUST/lending_fUST_20251020
["ID","MTS","AMOUNT","RATE_DAILY","PERIOD"]
[391858523,1760927312889,2297.25108458,0.00017,2]
[391858525,1760927315369,7702.75891542,0.00015,2]
[391858526,1760927315391,1728.22096343,0.00015,2]
[391858528,1760927316381,161.9287318,0.00024,2]
[391858529,1760927316413,2684.93607465,0.00019,2]
[391858531,1760927317117,5000.0,0.000241,2]
[391858532,1760927320105,158.29172016,0.00028767,120]
[391858533,1760927320305,424.92423012,0.0002,2]
[391858534,1760927320327,118.57478638,0.0002,2]
[391858535,1760927321607,200.50376646,0.0002,2]
[391858536,1760927322520,205.08185768,0.00021,2]
[391858537,1760927322611,1021.63864727,0.000225,2]
[391858538,1760927323187,5328.59873188,0.00023,2]
[391858539,1760927323217,3125.61221033,0.000215,2]
[391858540,1760927323240,7240.39765518,0.000215,2]
[391858541,1760927323413,1000.0,0.000235,2]
[391858543,1760927325199,-233.62416358,0.000241,2]
[391858545,1760927325584,1759.61234482,0.00024073,2]
[391858546,1760927325605,3240.38765518,0.00024073,2]
[391858547,1760927326413,294.23482915,0.00024,2]
[391858548,1760927329827,-66.37583642,0.000241,2]
[391858549,1760927329848,-89.13465149,0.000241,2]
[391858550,1760927330806,806.23,0.00021136,2]
[391858551,1760927331213,1612.46,0.00022143,2]
[391858552,1760927331619,2418.69,0.00023149,2]
[391858553,1760927340224,-168.0,0.000241,2]
[391858554,1760927340722,1628.00751567,0.00024073,2]
[391858555,1760927340745,3371.99248433,0.00024073,2]
[391858556,1760927343903,161.75915953,0.00024041,2]
[391858557,1760927344136,161.75915953,0.00024056,2]
[391858558,1760927354508,6304.49919661,0.00024073,2]
[391858559,1760927354530,3695.50080339,0.00024073,2]
[391858560,1760927355780,3189.98580102,0.00024073,2]
[391858561,1760927363680,3114.52339559,0.00024073,2]
[391858562,1760927363703,1885.47660441,0.00024073,2]
[391858563,1760927364375,-42.86534851,0.000241,2]
[391858564,1760927364395,-300.0,0.000241,2]
[391858565,1760927364414,-18.8754605,0.000241,2]
[391858566,1760927367167,-230.37328211,0.000241,2]
[391858567,1760927367501,8114.53339559,0.00024,2]
[391858568,1760927367522,3921.82539299,0.00024,2]
[391858570,1760927374399,196.0,0.00018,2]
[391858571,1760927374444,196.0,0.00018001,2]
[391858572,1760927374492,196.0,0.00018002,2]
[391858573,1760927374551,196.0,0.00018003,2]
[391858574,1760927374608,196.0,0.00018004,2]
[391858575,1760927374796,196.0,0.00018005,2]
[391858576,1760927374837,196.0,0.00018006,2]
[391858577,1760927374887,196.0,0.00018007,2]
[391858578,1760927374937,196.0,0.00018008,2]
[391858579,1760927374984,196.0,0.00018009,2]
[391858580,1760927375029,196.0,0.0001801,2]
[391858581,1760927375079,196.0,0.00018011,2]
[391858582,1760927375160,196.0,0.00018012,2]
[391858583,1760927375233,196.0,0.00018013,2]
[391858584,1760927375283,196.0,0.00018014,2]
[391858585,1760927375356,196.0,0.00018015,2]
[391858586,1760927375402,196.0,0.00018016,2]
[391858587,1760927375473,196.0,0.00018017,2]
[391858588,1760927375586,196.0,0.00018018,2]
[391858589,1760927375617,196.0,0.00018019,2]
[391858590,1760927375647,196.0,0.0001802,2]
[391858591,1760927375678,196.0,0.00018021,2]
[391858592,1760927375716,196.0,0.00018022,2]
[391858593,1760927375760,196.0,0.00018023,2]
[391858594,1760927375819,196.0,0.00018024,2]
[391858595,1760927375903,196.0,0.00018025,2]
[391858596,1760927375979,196.0,0.00018026,2]
[391858597,1760927376030,196.0,0.00018027,2]
[391858598,1760927376074,196.0,0.00018028,2]
[391858599,1760927376124,196.0,0.00018029,2]
[391858600,1760927376173,196.0,0.0001803,2]
[391858601,1760927376215,2.18460701,0.00018031,2]
[391858602,1760927376236,193.81539299,0.00018031,2]
[391858603,1760927376265,196.0,0.00018032,2]
[391858604,1760927376309,196.0,0.00018033,2]
[391858605,1760927376359,196.0,0.00018034,2]
[391858606,1760927376408,196.0,0.00018035,2]
[391858607,1760927376451,196.0,0.00018036,2]
[391858608,1760927376495,196.0,0.00018037,2]
[391858609,1760927376556,196.0,0.00018038,2]
[391858610,1760927376636,196.0,0.00018039,2]
[391858611,1760927376687,196.0,0.0001804,2]
[391858612,1760927376745,196.0,0.00018041,2]
[391858613,1760927376796,196.0,0.00018042,2]
[391858614,1760927376842,196.0,0.00018043,2]
[391858615,1760927376896,196.0,0.00018044,2]
[391858616,1760927376945,196.0,0.00018045,2]
[391858617,1760927376995,196.0,0.00018046,2]
[391858618,1760927377049,196.0,0.00018047,2]
[391858619,1760927377144,196.0,0.00018048,2]
[391858620,1760927377173,196.0,0.00018049,2]
[391858621,1760927377201,196.0,0.00018051,2]
[391858622,1760927377250,196.0,0.00018052,2]
[391858623,1760927377294,196.0,0.00018053,2]
[391858624,1760927377347,196.0,0.00018054,2]
[391858625,1760927377395,196.0,0.00018055,2]
[391858626,1760927377441,196.0,0.00018056,2]
[391858627,1760927377495,196.0,0.00018057,2]
[391858628,1760927377547,196.0,0.00018058,2]
[391858629,1760927377597,196.0,0.00018059,2]
[391858630,1760927377709,196.0,0.0001806,2]
[391858631,1760927377755,196.0,0.00018061,2]
[391858632,1760927377805,196.0,0.00018062,2]
[391858633,1760927377854,196.0,0.00018063,2]
[391858634,1760927377906,196.0,0.00018064,2]
[391858635,1760927377949,196.0,0.00018065,2]
[391858636,1760927378000,196.0,0.00018066,2]
[391858637,1760927378045,196.0,0.00018067,2]
[391858638,1760927378097,196.0,0.00018068,2]
[391858639,1760927378148,196.0,0.00018069,2]
[391858640,1760927378201,196.0,0.0001807,2]
[391858641,1760927378248,196.0,0.00018071,2]
[391858642,1760927378293,196.0,0.00018072,2]
[391858643,1760927378341,196.0,0.00018073,2]
[391858644,1760927378397,196.0,0.00018074,2]
[391858645,1760927378450,196.0,0.00018075,2]
[391858646,1760927378502,196.0,0.00018076,2]
[391858647,1760927378674,196.0,0.00018077,2]
[391858648,1760927378723,196.0,0.00018078,2]
[391858649,1760927378831,196.0,0.00018079,2]
[391858650,1760927378861,196.0,0.0001808,2]
[391858651,1760927378891,196.0,0.00018081,2]
[391858652,1760927378928,196.0,0.00018082,2]
[391858653,1760927378985,6.19460701,0.00018083,2]
[391858654,1760927379009,189.80539299,0.00018083,2]
[391858655,1760927379040,196.0,0.00018084,2]
[391858656,1760927379098,196.0,0.00018085,2]
[391858657,1760927379250,196.0,0.00018086,2]
[391858658,1760927379309,196.0,0.00018087,2]
[391858659,1760927379356,196.0,0.00018088,2]
[391858660,1760927379404,196.0,0.00018089,2]
[391858661,1760927379449,196.0,0.0001809,2]
[391858662,1760927379493,196.0,0.00018091,2]
[391858663,1760927379550,196.0,0.00018092,2]
[391858664,1760927379598,196.0,0.00018093,2]
[391858665,1760927379643,196.0,0.00018094,2]
[391858666,1760927379689,196.0,0.00018095,2]
[391858667,1760927379766,196.0,0.00018096,2]
[391858668,1760927379835,196.0,0.00018097,2]
[391858669,1760927379900,196.0,0.00018098,2]
[391858670,1760927379968,196.0,0.00018099,2]
[391858671,1760927380045,6674.20460701,0.000181,2]
[391858672,1760927380069,2981.7281716,0.000181,2]
[391858673,1760927386295,5000.0,0.0002401,2]
[391858674,1760927409140,5000.0,0.00024073,2]
[391858682,1760927420422,500.37979924,0.00024,2]
[391858686,1760927431656,4499.63020076,0.00024073,2]
[391858687,1760927431678,500.36979924,0.00024073,2]
[391858724,1760927432145,-300.0,0.000241,2]
[391858726,1760927432154,-300.0,0.000241,2]
[391858728,1760927432164,-25.36181593,0.000241,2]
[391858730,1760927432176,-274.63818407,0.000241,2]
[391858732,1760927432186,-100.15488098,0.0002414,2]
[391858740,1760927432247,-199.84511902,0.0002414,2]
[391858742,1760927432256,-1200.0,0.0002414,2]
[391858744,1760927432266,-300.0,0.00024141,2]
[391858746,1760927432276,-300.0,0.00024141,2]
[391858748,1760927432285,-300.0,0.00024141,2]
[391858750,1760927432295,-300.0,0.00024141,2]
[391858752,1760927432303,-150.0,0.00024142,2]
[391858754,1760927432311,-3491.38277456,0.00024142,2]
[391858756,1760927432323,-2301.11366718,0.00024142,2]
[391858953,1760927438087,-300.0,0.000241,2]
[391858954,1760927438096,-188.69541208,0.00024142,2]
[391858955,1760927438142,-18407.98936878,0.00024142,2]
[391858956,1760927438152,-160.0,0.0002445,2]
[391858958,1760927438162,-402.86590842,0.0002445,2]
[391858960,1760927438172,-160.0,0.0002445,2]
[391858962,1760927438182,-160.0,0.0002445,2]
[391858964,1760927438191,-160.0,0.0002445,2]
[391858965,1760927438200,-21207.08551754,0.00024465,2]
[391858966,1760927438218,-15307.59271796,0.00024465,2]
[391858967,1760927438229,-9286.15640441,0.00024465,2]
[391858968,1760927438239,-1200.0,0.00024524,2]
[391858969,1760927438249,-666.0,0.00024575,2]
[391858970,1760927438259,-436.60557,0.00024697,2]
[391858971,1760927438268,-172.5,0.00024742,2]
[391858972,1760927438278,-400.40619701,0.00025,2]
[391858973,1760927438287,-2445.7549951,0.00025113,2]
[391858974,1760927438297,-195.0,0.00025342,2]
[391858975,1760927438307,-217.5,0.00025942,2]
[391858976,1760927438316,-745.54,0.00026127,2]
[391858977,1760927438326,-404.0,0.00026175,2]
[391858978,1760927438335,-420.0,0.00026176,2]
[391858979,1760927438345,-1239.0,0.00026294,2]
[391858980,1760927438354,-240.0,0.00026542,2]
[391858981,1760927438364,-710.0,0.00026581,2]
[391858982,1760927438374,-166.75699036,0.00026849,2]
[391858983,1760927438383,-45927.2010082,0.0002685,2]
[391858984,1760927438392,-197.31213138,0.0002685,2]
[391858985,1760927438402,-83671.9610861,0.0002686,30]
[391858986,1760927438412,-402.86590842,0.0002686,30]
[391858987,1760927438421,-160.0,0.00026955,2]
[391858988,1760927438430,-268.0,0.00027,7]
[391858989,1760927438440,-159.52815416,0.00027065,7]
[391858990,1760927438449,-262.5,0.00027142,2]
[391858991,1760927438458,-1491.08,0.00027371,2]
[391858992,1760927438467,-250.16525077,0.0002739,2]
[391858993,1760927438477,-198.6552585,0.0002739,2]
[391858994,1760927438486,-150.0,0.0002739,2]
[391858995,1760927438495,-2620.28617563,0.000275,2]
[391858996,1760927438504,-260.0,0.00027502,2]
[391858997,1760927438514,-274.72161769,0.0002759,2]
[391858998,1760927438523,-250.0,0.0002759,2]
[391858999,1760927438533,-250.0,0.0002759,2]
[391859000,1760927438542,-250.0,0.0002759,2]
[391859001,1760927438552,-250.0,0.0002759,2]
[391859002,1760927438561,-250.0,0.0002759,2]
[391859003,1760927438570,-250.0,0.0002759,2]
[391859004,1760927438580,-250.0,0.0002759,2]
[391859005,1760927438589,-250.0,0.0002759,2]
[391859006,1760927438598,-194.72792766,0.0002759,2]
[391859007,1760927438607,-250.0,0.0002759,2]
[391859008,1760927438617,-250.0,0.0002759,2]
[391859009,1760927438626,-250.0,0.0002759,2]
[391859010,1760927438635,-250.0,0.0002759,2]
[391859011,1760927438645,-250.0,0.0002759,2]
[391859012,1760927438727,-151.0,0.0002759,2]
[391859013,1760927438741,-151.0,0.0002759,2]
[391859014,1760927438751,-533.88981491,0.0002759,2]
[391859015,1760927438760,-151.0,0.0002759,2]
[391859016,1760927438769,-151.0,0.0002759,2]
[391859017,1760927438779,-151.0,0.0002759,2]
[391859018,1760927438789,-151.0,0.0002759,2]
[391859019,1760927438799,-151.0,0.0002759,2]
[391859020,1760927438809,-151.0,0.0002759,2]
[391859021,1760927438818,-151.0,0.0002759,2]
[391859022,1760927438828,-151.0,0.0002759,2]
[391859023,1760927438837,-151.0,0.0002759,2]
[391859024,1760927438847,-290.08453086,0.0002759,2]
[391859025,1760927438856,-500.0,0.0002759,2]
[391859026,1760927438865,-500.0,0.0002759,2]
[391859027,1760927438875,-500.0,0.0002759,2]
[391859028,1760927438884,-250.0,0.0002759,2]
[391859029,1760927438894,-500.0,0.0002759,2]
[391859030,1760927438903,-250.0,0.0002759,2]
[391859031,1760927438913,-500.0,0.0002759,2]
[391859032,1760927438922,-250.0,0.0002759,2]
[391859033,1760927438931,-500.0,0.0002759,2]
[391859034,1760927438940,-250.0,0.0002759,2]
[391859035,1760927438950,-500.0,0.0002759,2]
[391859036,1760927438959,-250.0,0.0002759,2]
[391859037,1760927438969,-500.0,0.0002759,2]
[391859038,1760927438978,-250.0,0.0002759,2]
[391859039,1760927438988,-500.0,0.0002759,2]
[391859040,1760927438997,-250.0,0.0002759,2]
[391859041,1760927439007,-500.0,0.0002759,2]
[391859042,1760927439017,-293.37557517,0.0002759,2]
[391859043,1760927439027,-500.0,0.0002759,2]
[391859044,1760927439037,-500.0,0.0002759,2]
[391859045,1760927439047,-500.0,0.0002759,2]
[391859046,1760927439057,-500.0,0.0002759,2]
[391859047,1760927439066,-268.0,0.00027671,14]
[391859048,1760927439076,-402.86590842,0.000277,30]
[391859049,1760927439086,-285.0,0.00027742,2]
[391859050,1760927439096,-500.0,0.00027864,2]
[391859051,1760927439106,-45927.2010082,0.00027898,2]
[391859052,1760927439116,-197.31213138,0.00027898,2]
[391859053,1760927439125,-15188.06332311,0.00028,2]
[391859054,1760927439135,-10338.71524354,0.00028,5]
[391859055,1760927439145,-11112.37797043,0.00028,4]
[391859056,1760927439154,-787.55736928,0.00028,2]
[391859057,1760927439163,-360.0,0.0002805,2]
[391859058,1760927439173,-541.07671105,0.00028138,2]
[391859059,1760927439182,-201.93286099,0.00028138,2]
[391859060,1760927439193,-553.64373807,0.00028138,2]
[391859061,1760927439202,-11854.19,0.000282,4]
[391859062,1760927439212,-307.5,0.00028342,2]
[391859063,1760927439221,-587.0,0.00028382,2]
[391859064,1760927439231,-250.0,0.00028414,2]
[391859065,1760927439240,-158.45552761,0.00028473,5]
[391859066,1760927439250,-168.05889343,0.00028473,5]
[391859067,1760927439260,-500.0,0.00028473,5]
[391859068,1760927439270,-500.0,0.00028473,5]
[391859069,1760927439280,-137261.35951211,0.000285,7]
[391859070,1760927439291,-5000.0,0.00028545,2]
[391859071,1760927439300,-158.45551666,0.00028573,5]
[391859072,1760927439309,-460.0,0.00028598,2]
[391859073,1760927439319,-2236.63,0.00028615,2]
[391859074,1760927439329,-341.69610932,0.00028677,2]
[391859075,1760927439338,-209.40437684,0.00028686,2]
[391859076,1760927439348,-574.12855637,0.00028686,2]
[391859077,1760927439357,-989.12601571,0.0002876,2]
[391859078,1760927439367,-4000.0,0.0002876,5]
[391859079,1760927439376,-2318.4149331,0.0002876,2]
[391859080,1760927439386,-250.31971598,0.0002876,2]
[391859081,1760927439396,-268.0,0.00028767,14]
[391859082,1760927439405,-169.83253239,0.000288,7]
[391859083,1760927439414,-390.15134735,0.00028801,5]
[391859084,1760927439423,-330.0,0.00028942,2]
[391859085,1760927439433,-248.75289196,0.0002899,2]
[391859086,1760927439442,-168.0,0.00028994,2]
[391859087,1760927439452,-881.98862225,0.00029,2]
[391859088,1760927439461,-502.44369659,0.00029,7]
[391859089,1760927439473,-1000.0,0.00029021,5]
[391859090,1760927439486,-1000.0,0.00029021,5]
[391859091,1760927439494,-466.71,0.00029032,3]
[391859092,1760927439503,-233.35,0.00029032,3]
[391859093,1760927439512,-700.1,0.00029032,3]
[391859094,1760927439521,-11854.18,0.00029041,4]
[391859095,1760927439531,-197.8928673,0.00029041,30]
[391859096,1760927439541,-164.4771629,0.00029041,30]
[391859097,1760927439550,-589.564227,0.00029041,30]
[391859098,1760927439560,-190.0811961,0.00029041,30]
[391859099,1760927439568,-589.564227,0.00029041,30]
[391859100,1760927439577,-153.0,0.00029041,30]
[391859101,1760927439586,-194.4887953,0.00029041,30]
[391859102,1760927439595,-603.3485661,0.00029041,30]
[391859103,1760927439604,-155.5542399,0.00029041,30]
[391859104,1760927439613,-1480.79596406,0.00029044,120]
[391859105,1760927439622,-45927.2010082,0.0002907,2]
[391859106,1760927439631,-197.31213138,0.0002907,2]
[391859107,1760927439641,-150.0,0.00029073,5]
[391859108,1760927439650,-560.0,0.00029146,2]
[391859109,1760927439659,-23708.36,0.0002918,4]
[391859110,1760927439668,-1150.08846341,0.00029198,2]
[391859111,1760927439677,-217.15233878,0.00029234,2]
[391859112,1760927439686,-595.37131296,0.00029234,2]
[391859113,1760927439695,-151.0,0.000293,13]
[391859114,1760927439705,-525.9767798,0.00029315,30]
[391859115,1760927439716,-1150.08846341,0.00029316,2]
[391859116,1760927439726,-45927.2010082,0.00029341,2]
[391859117,1760927439739,-197.31213138,0.00029341,2]
[391859118,1760927439748,-150.44936231,0.0002935,7]
[391859119,1760927439757,-150.0,0.00029373,5]
[391859120,1760927439767,-169.46712028,0.00029427,7]
[391859122,1760927439776,-213.46146153,0.00029427,7]
[391859123,1760927439786,-307.22374852,0.00029452,2]
[391859124,1760927439858,-308.88082822,0.00029452,2]
[391859125,1760927439867,-183.21977216,0.00029452,2]
[391859126,1760927439879,-137781.603025,0.0002947,2]
[391859127,1760927439889,-1578.49705104,0.0002947,2]
[391859128,1760927439898,-151.0,0.0002948,2]
[391859129,1760927439908,-151.0,0.0002948,30]
[391859130,1760927439918,-153.367777,0.0002948,30]
[391859131,1760927439928,-151.0,0.0002948,30]
[391859133,1760927439937,-243.684069,0.0002948,30]
[391859134,1760927439946,-151.0,0.0002948,30]
[391859135,1760927439955,-151.0,0.0002948,30]
[391859136,1760927439965,-307.295277,0.0002948,30]
[391859137,1760927439975,-307.295277,0.0002948,30]
[391859138,1760927439984,-307.295277,0.0002948,30]
[391859139,1760927439993,-307.295277,0.0002948,30]
[391859140,1760927440003,-152.578664,0.0002948,30]
[391859141,1760927440012,-354.82403,0.0002948,30]
[391859142,1760927440021,-354.82403,0.0002948,30]
[391859143,1760927440031,-354.82403,0.0002948,30]
[391859144,1760927440040,-354.82403,0.0002948,30]
[391859145,1760927440049,-301.99999976,0.0002948,30]
[391859146,1760927440059,-151.891348,0.0002948,30]
[391859147,1760927440068,-151.0,0.0002948,30]
[391859148,1760927440078,-151.0,0.0002948,30]
[391859149,1760927440088,-151.0,0.0002948,30]
[391859150,1760927440098,-151.0,0.0002948,30]
[391859151,1760927440107,-895.96952,0.0002948,30]
[391859152,1760927440116,-895.96952,0.0002948,30]
[391859153,1760927440126,-895.96952,0.0002948,30]
[391859154,1760927440135,-895.96952,0.0002948,30]
[391859155,1760927440145,-151.0,0.0002948,30]
[391859156,1760927440154,-246.780539,0.0002948,30]
[391859157,1760927440164,-246.780539,0.0002948,30]
[391859158,1760927440174,-246.780539,0.0002948,30]
[391859159,1760927440183,-151.0,0.0002948,30]
[391859160,1760927440193,-246.780539,0.0002948,30]
[391859161,1760927440202,-151.0,0.0002948,30]
[391859162,1760927440212,-151.0,0.0002948,30]
[391859163,1760927440222,-151.0,0.0002948,30]
[391859164,1760927440230,-249.018806,0.0002948,30]
[391859165,1760927440240,-151.0,0.0002948,30]
[391859166,1760927440249,-151.0,0.0002948,30]
[391859167,1760927440259,-355131.65210939,0.0002948,2]
[391859175,1760927440382,-1000.0,0.0002948,2]
[391859177,1760927440393,-500.0,0.0002948,2]
[391859186,1760927443330,-13368.34789061,0.0002948,2]
[391859187,1760927443340,-197.31213138,0.0002949,2]
[391859188,1760927443352,-335.25476301,0.00029499,2]
[391859189,1760927443423,-2197.24,0.000295,2]
[391859190,1760927443441,-38575.53,0.000295,7]
[391859191,1760927443451,-6319.53,0.000295,2]
[391859192,1760927443460,-402.86590842,0.000295,7]
[391859193,1760927443470,-211.091175,0.000295,2]
[391859194,1760927443480,-252.06163905,0.000295,120]
[391859195,1760927443489,-211.091175,0.00029525,2]
[391859196,1760927443498,-155.212055,0.00029525,2]
[391859197,1760927443507,-352.5,0.00029542,2]
[391859198,1760927443516,-211.091175,0.0002955,2]
[391859199,1760927443527,-155.212055,0.0002955,2]
[391859200,1760927443539,-71589.98523032,0.0002956,2]
[391859201,1760927443548,-152.89452512,0.00029567,30]
[391859202,1760927443557,-210.63753227,0.00029567,30]
[391859203,1760927443567,-153.71087954,0.00029567,30]
[391859204,1760927443576,-213.3186526,0.00029567,30]
[391859205,1760927443585,-151.0,0.00029567,30]
[391859206,1760927443595,-151.0,0.00029567,30]
[391859207,1760927443604,-596.0,0.00029567,30]
[391859208,1760927443614,-533.0,0.00029567,30]
[391859209,1760927443623,-500.0,0.00029568,5]
[391859210,1760927443633,-1500.0,0.00029568,5]
[391859211,1760927443642,-500.0,0.00029573,5]
[391859212,1760927443652,-211.091175,0.00029575,2]
[391859213,1760927443661,-155.212055,0.00029575,2]
[391859214,1760927443671,-151.0,0.000296,19]
[391859215,1760927443680,-211.091175,0.000296,2]
[391859216,1760927443689,-155.212055,0.000296,2]
[391859217,1760927443698,-2609.52677127,0.000296,2]
[391859218,1760927443708,-281.6112336,0.00029604,2]
[391859219,1760927443717,-5188.0358072,0.00029604,2]
[391859220,1760927443726,-1605.1950761,0.00029604,2]
[391859221,1760927443735,-914.3361082,0.00029604,2]
[391859222,1760927443744,-689.2716343,0.00029604,2]
[391859223,1760927443756,-627.8626838,0.00029604,2]
[391859224,1760927443765,-227.6339636,0.00029604,2]
[391859225,1760927443774,-250.0,0.00029621,5]
[391859226,1760927443784,-208.71064386,0.00029622,30]
[391859227,1760927443794,-596.0,0.00029622,30]
[391859228,1760927443803,-533.0,0.00029622,30]
[391859229,1760927443812,-596.0,0.00029677,30]
[391859230,1760927443821,-533.0,0.00029677,30]
[391859231,1760927443832,-197.31213138,0.0002968,2]
[391859232,1760927443841,-168.0,0.00029694,2]
[391859233,1760927443850,-362.63163458,0.00029694,2]
[391859234,1760927443859,-151.0,0.000297,19]
[391859235,1760927443868,-29890.55525697,0.000297,5]
[391859239,1760927454393,5000.0,0.00024073,2]
[391859240,1760927477981,4499.64020076,0.00024073,2]
[391859241,1760927478001,500.35979924,0.00024073,2]
[391859242,1760927494406,196.0,0.00018,2]
[391859243,1760927494524,196.0,0.00018017,2]
[391859244,1760927494560,196.0,0.00018033,2]
[391859245,1760927494668,196.0,0.0001805,2]
[391859246,1760927494696,196.0,0.00018067,2]
[391859247,1760927494727,196.0,0.00018083,2]
[391859248,1760927494760,276.99663893,0.000181,2]
[391859249,1760927500190,5000.0,0.00024073,2]
[391859250,1760927519108,160.0,9.3e-07,2]
[391859251,1760927520325,160.0,9.3e-07,2]
[391859252,1760927521397,160.0,9.3e-07,2]
[391859253,1760927522493,160.0,9.3e-07,2]
[391859254,1760927523498,2406.65356183,0.00024073,2]
[391859255,1760927523521,2593.34643817,0.00024073,2]
[391859256,1760927523567,160.0,9.3e-07,2]
[391859257,1760927524748,160.0,9.3e-07,2]
[391859258,1760927526206,160.0,9.3e-07,2]
[391859259,1760927534596,-168.55375808,0.00024099,2]
[391859260,1760927546236,5000.0,0.00024073,2]
[391859261,1760927568427,1926.66356183,0.00024073,2]
[391859262,1760927568450,3073.33643817,0.00024073,2]
[391859263,1760927590353,904.425421,0.00013699,2]
[391859264,1760927590573,904.425421,0.00020187,2]
[391859265,1760927590917,5000.0,0.00024073,2]
[391859266,1760927591155,-248.60096977,0.00024099,2]
[391859268,1760927613873,117.82271983,0.00024073,2]
[391859269,1760927613897,4882.17728017,0.00024073,2]
[391859270,1760927613953,5000.0,0.00034066,64]
[391859271,1760927636409,5000.0,0.00024073,2]
[391859278,1760927790029,117.83271983,0.00024073,2]
[391859279,1760927790052,1174.88728017,0.00024073,2]
[391859283,1760927853227,5000.0,0.00024073,2]
[391859285,1760927876627,3825.12271983,0.00024073,2]
[391859286,1760927876649,1174.87728017,0.00024073,2]
[391859287,1760927899097,3422.21874208,0.00024073,2]
[391859335,1760928490501,1512.0,0.00024073,2]
[391859340,1760928540218,159.0828648,0.00034043,60]
[391859342,1760928580802,3890.91397775,0.00023928,2]
[391859343,1760928580911,9077.02423115,0.00023928,2]
[391859344,1760928584139,417.15472785,0.00024073,2]
[391859345,1760928589799,172.442264,0.00023928,2]
[391859350,1760928632351,-150.0,0.00024099,2]
[391859352,1760928632362,-500.0,0.000241,2]
[391859353,1760928632373,-172.5,0.00024699,2]
[391859354,1760928632384,-810.87,0.0002489,2]
[391859355,1760928632396,-46.69802301,0.0002489,2]
[391859356,1760928632407,-300.0,0.00024898,2]
[391859358,1760928632423,-300.0,0.00024898,2]
[391859360,1760928632432,-300.0,0.00024898,2]
[391859362,1760928632441,-528.29593636,0.000249,2]
[391859364,1760928632452,-8840.67251333,0.000249,2]
[391859366,1760928632461,-18151.93010049,0.0002498,2]
[391859369,1760928632481,-11609.49261687,0.0002498,2]
[391859482,1760928640443,-91.25793794,0.0002498,2]
[391859483,1760928640452,-440.45206206,0.0002499,2]
[391859581,1760928646763,-4198.85265705,0.0002499,2]
[391859582,1760928658864,1047.323468,0.0002393,2]
[391859584,1760928696837,300.0,0.000239,2]
[391859585,1760928710734,300.0,0.000239,2]
[391859586,1760928724543,300.0,0.000239,2]
[391859587,1760928738784,300.0,0.000239,2]
[391859588,1760928752710,300.0,0.000239,2]
[391859589,1760928753529,300.0,0.000239,2]
[391859590,1760928811980,170.60826595,0.000239,2]
[391859591,1760928854702,-220.50454263,0.0002473,2]
[391859592,1760928857897,-172.5,0.0002473,2]
[391859593,1760928878742,23712.21251188,0.00034039,60]
[391859594,1760928899637,-230.02804165,0.0002473,2]
[391859595,1760928929578,-179.28,0.00024729,2]
[391859596,1760928933340,-168.18118693,0.00024729,2]
[391859597,1760928937142,-167.36751622,0.00024729,2]
[391859598,1760928945241,-155.36852801,0.00024729,2]
[391859599,1760928959544,-175.68324046,0.00024729,2]